Cogmind - Beta 13 @@@ ROGUE MODE // 2024.04.10 @ 16:35:54 Player: lazy_engineer Result: Destroyed by D-53 Grenadier with Mini Grenade Launcher Performance ------------- Evolutions (0) 0 Regions Visited (2) 400 Robots Destroyed (15) 75 Value Destroyed (292) 292 Prototype IDs (0) 0 Alien Tech Used (0) 0 Bonus (-69) -69 TOTAL SCORE: 698 Bonus ------- Friendly Fire -69 Cogmind --------- Core Integrity 0/250 Matter 71/300 Energy 100/100 System Corruption 5% Temperature Cool (0) Movement Core (350) Ox6 Location -10/Mines Parts ------- > --- POWER (1) -------- (None) > --- PROPULSION (2) --- (None) > --- UTILITY (2) ------ Large Storage Unit Signal Interpreter > --- WEAPON (2) ------- (None) > --- INVENTORY (15) --- Ion Engine Small Storage Unit Medium Storage Unit Sensor Array Signal Interpreter Hacking Suite Assault Rifle Rocket Launcher Datajack Datajack Mining Laser Plasma Cutter Plasma Cutter Plasma Cutter Plasma Cutter Peak State ------------ > --- POWER ------------ Ion Engine > --- PROPULSION ------- Light Treads Wheel > --- UTILITY ---------- Large Storage Unit Signal Interpreter > --- WEAPON ----------- Shotgun Shotgun > --- INVENTORY -------- Ion Engine Small Storage Unit Medium Storage Unit Sensor Array Signal Interpreter Hacking Suite Assault Rifle Rocket Launcher Datajack Datajack Mining Laser Plasma Cutter Plasma Cutter Plasma Cutter Plasma Cutter [Rating: 11] Favorites ----------- Power Ion Engine Engine Ion Engine Propulsion Light Treads Treads Light Treads Wheel Wheel Utility Signal Interpreter Storage Medium Storage Unit Processor Signal Interpreter Weapon Shotgun Energy Gun Medium Laser Ballistic Gun Shotgun Special Weapon Plasma Cutter Build | -11 -10 -10 ------- Run | Yrd Mat Min Slots Evolved . | . . . Power . | . . . Propulsion . | . . . Utility . | . . . Weapon . | . . . Parts Attached 24 | 7 15 2 Power 1 | 1 . . Engine 1 | 1 . . Core . | . . . Reactor . | . . . Propulsion 5 | 3 2 . Treads 3 | 2 1 . Leg . | . . . Wheel 2 | 1 1 . Hover . | . . . Flight . | . . . Utility 5 | 2 3 . Device . | . . . Storage 4 | 2 2 . Processor 1 | . 1 . Hackware . | . . . Protection . | . . . Artifact . | . . . Weapon 13 | 1 10 2 Energy Gun 2 | . 2 . Energy Cannon . | . . . Ballistic Gun 10 | 1 7 2 Ballistic Cannon . | . . . Launcher . | . . . Special Weapon 1 | . 1 . Impact Weapon . | . . . Slashing Weapon . | . . . Piercing Weapon . | . . . Special Melee Weapon . | . . . Unidentified Prototypes . | . . . Parts Lost 5 | . . 5 Power 1 | . . 1 Propulsion 2 | . . 2 Utility . | . . . Weapon 2 | . . 2 Highest Loss Streak 5 | . . 5 To Critical Strikes . | . . . Average Slot Usage (%) 98 | . 98 96 Engine 13 | . 14 12 Treads 14 | . 14 14 Wheel 13 | . 14 12 Storage 14 | . 14 14 Processor 13 | . 13 14 Energy Gun 1 | . 2 . Ballistic Gun 24 | . 24 25 Naked Turns . | . . . Heaviest Build 31 | 16 31 31 Greatest Support 40 | 40 20 20 Greatest Overweight (x) 6 | 1 3 6 Average Overweight (x) 1 | . 1 2 Largest Inventory Capacity 15 | 8 15 15 Average Capacity 11 | 7 11 15 Most Carried 15 | 5 15 15 Average Carried 10 | 3 10 15 Final Capacity 15 | 8 15 15 Final Carried 15 | 4 15 15 Class Distribution -------------------- 100% | Mutant Dominant Class ---------------- Mutant | -10/Materials Mutant | -10/Mines Resources | -11 -10 -10 ----------- Run | Yrd Mat Min Matter Collected 486 | 273 165 48 Remotely . | . . . Salvage Created 439 | 86 345 8 Parts 40 | 3 36 1 Haulers Intercepted 1 | . 1 . Recyclers Shooed . | . . . Parts Field Recycled . | . . . Retrieved Matter . | . . . Parts Self-Destructed . | . . . Prevented . | . . . Kills | -11 -10 -10 ------- Run | Yrd Mat Min Combat Hostiles Destroyed 9 | . 8 1 Guns 9 | . 8 1 Classes Destroyed 6 | 1 5 . Hauler 1 | . 1 . Recycler 1 | 1 . . Operator 1 | . 1 . Watcher 3 | . 3 . Swarmer 4 | . 3 1 Grunt 5 | . 5 . Best Kill Streak 3 | 1 3 1 Combat Bots Only 3 | . 3 1 Max Kills in Single Turn 1 | 1 1 1 Gunslinging . | . . . Exploded . | . . . Melee . | . . . Uniques/NPCs Destroyed . | . . . Combat | -11 -10 -10 -------- Run | Yrd Mat Min Hostile Shots Fired 66 | . 31 35 Missed 17 | . 6 11 Damage Taken 984 | . 295 689 Core 260 | . 31 229 Absorbed by Shields . | . . . Core Remaining (%) 100 | 100 . . Volleys Fired 53 | 3 47 3 Largest 2 | 1 2 2 Hottest 70 | 20 70 46 Shots Fired 86 | 3 77 6 Gun 83 | 3 74 6 Cannon . | . . . Launcher . | . . . Special 3 | . 3 . Kinetic 79 | 3 70 6 Thermal 7 | . 7 . Explosive . | . . . Electromagnetic . | . . . Robot Hit Streak 19 | 1 19 2 Robot Miss Streak 12 | 1 12 4 Penetration Max . | . . . Secondary Targets 1 | . 1 . Max Gunslinging Chain 1 | . 1 . Shots Hit Robots 53 | 2 47 4 Core Hits 31 | 2 27 2 Critical Kills . | . . . Critical Parts Destroyed . | . . . Critical Strikes 2 | . 2 . Burn 2 | . 2 . Melee Attacks . | . . . Impact . | . . . Slashing . | . . . Piercing . | . . . Sneak Attacks . | . . . Combat Hostiles . | . . . Follow-up Attacks . | . . . Damage Inflicted 659 | 16 589 54 Guns 636 | 16 566 54 Cannons . | . . . Explosions . | . . . Melee . | . . . Ramming . | . . . Kinetic 587 | 16 517 54 Thermal 72 | . 72 . Explosive . | . . . Electromagnetic . | . . . Impact . | . . . Slashing . | . . . Piercing . | . . . Highest Corruption 5 | . 4 5 Average Corruption 4 | . 3 4 Corruption Purged . | . . . Corruption Blocked . | . . . Effects 21 | . 18 3 Message Errors 1 | . 1 . Matter Fused 8 | . 5 3 Heat Flow Errors 3 | . 3 . Data Loss (minor) 8 | . 8 . Data Loss (major) 1 | . 1 . Overload Shots . | . . . Overflow Damage . | . . . Projectiles . | . . . Explosions . | . . . Melee . | . . . Knockbacks . | . . . Impact . | . . . Kinetic . | . . . Secondary . | . . . Self-Inflicted Damage . | . . . Shots . | . . . Rammed . | . . . Targets Rammed . | . . . Kicked . | . . . Crushed . | . . . Highest Temperature 234 | . 234 . Average Temperature 87 | . 87 . Received Heat Transfer 153 | . 153 . Siege Activations . | . . . Robots Corrupted . | . . . Combat Hostiles . | . . . Parts Fried . | . . . Impact Corruptions . | . . . Robots Melted . | . . . Combat Hostiles . | . . . Parts Melted 1 | . 1 . Heat Transferred 358 | . 358 . Parts Sabotaged . | . . . Parts Stolen . | . . . Parts Stripped . | . . . Power Chain Reactions . | . . . Alert | -11 -10 -10 ------- Run | Yrd Mat Min Peak Influence 222 | 5 222 30 Initial 10 | . 3 10 Average 72 | 2 82 13 Maximum Alert Level 1 | . 1 . Low Security (%) 97 | 100 97 100 Level 1 2 | . 2 . Level 2 . | . . . Level 3 . | . . . Level 4 . | . . . Level 5 . | . . . High Security . | . . . Max Security . | . . . Squads Dispatched 1 | . 1 . Investigation 1 | . 1 . Extermination . | . . . Reinforcement . | . . . Assault . | . . . Garrison . | . . . Intercept . | . . . Searches Triggered . | . . . Construction Impeded . | . . . Haulers Reinforced . | . . . Active Scanning Responses . | . . . Cargo Convoy Interrupts . | . . . Stealth | -11 -10 -10 --------- Run | Yrd Mat Min Distress Signals 1 | . 1 . Communications Jammed . | . . . Distress Signals . | . . . Times Spotted 32 | . 16 16 Peak Tracking Total 10 | . 3 10 Tactical Retreats . | . . . Traps | -11 -10 -10 ------- Run | Yrd Mat Min Traps Triggered 2 | . 2 . Indirectly . | . . . Trap Hack Attempts . | . . . Triggered . | . . . Disarmed . | . . . Reprogrammed . | . . . Reused . | . . . Traps Extracted . | . . . Installed . | . . . Triggered 1 | . . 1 Machines | -11 -10 -10 ---------- Run | Yrd Mat Min Machines Disabled . | . . . Max in Single Turn . | . . . Machines Repaired . | . . . Machines Dismantled . | . . . Machines Sabotaged . | . . . Overloaded Fab Kills . | . . . Hacking | -11 -10 -10 --------- Run | Yrd Mat Min Machines Accessed 7 | . 7 . Terminals 7 | . 7 . Fabricators . | . . . Repair Stations . | . . . Recycling Units . | . . . Scanalyzers . | . . . Garrison Access . | . . . Total Hacks 12 | . 12 . Successful 9 | . 9 . Failed 3 | . 3 . Catastrophic 2 | . 2 . Database Lockouts . | . . . Manual 10 | . 10 . Terminals 12 | . 12 . Fabricators . | . . . Repair Stations . | . . . Recycling Units . | . . . Scanalyzers . | . . . Garrison Access . | . . . Terminal Hacks 6 | . 6 . Locate Traps 1 | . 1 . Hauler Manifests 1 | . 1 . Zone Layout 4 | . 4 . Fabricator Hacks . | . . . Repair Station Hacks . | . . . Recycling Unit Hacks . | . . . Scanalyzer . | . . . Garrison Access Hacks . | . . . Unauthorized Hacks 3 | . 3 . Terminals 3 | . 3 . Track 1 | . 1 . Assimilate 1 | . 1 . Operators 1 | . 1 . Fabricators . | . . . Repair Stations . | . . . Recycling Units . | . . . Scanalyzers . | . . . Garrison Access . | . . . Data Cores Recovered . | . . . Used . | . . . Hacking Detections 5 | . 5 . Full Trace Events 1 | . 1 . Feedback Events . | . . . Feedback Blocked . | . . . Robot Schematics Acquired . | . . . Robots Built . | . . . Authchips . | . . . Time . | . . . Total Robot Build Rating . | . . . Part Schematics Acquired . | . . . Parts Built . | . . . Authchips . | . . . Time . | . . . Total Part Build Rating . | . . . Parts Repaired . | . . . Time . | . . . Parts Recycled . | . . . Recycled Matter . | . . . Retrieved Matter . | . . . Retrieved Components . | . . . Parts Scanalyzed . | . . . Part Schematics Acquired . | . . . Parts Damaged . | . . . Bothacking | -11 -10 -10 ------------ Run | Yrd Mat Min Used RIF Installer . | . . . Robots Hacked . | . . . Non-combat . | . . . Combat . | . . . Robot Hacks Applied . | . . . Relay Couplers Released . | . . . Fabnet Peak Effective % . | . . . Robots Rewired . | . . . Allies Hacked . | . . . Hacks Repelled . | . . . Allies | -11 -10 -10 -------- Run | Yrd Mat Min Total Allies 1 | . 1 . Largest Group 1 | . 1 . Highest-Rated Group 10 | . 10 . Highest-Rated Ally 10 | . 10 . Total Orders 1 | . 1 . STAY 1 | . 1 . Ally Attacks . | . . . Total Damage . | . . . Kills . | . . . Allies Corrupted . | . . . Allies Melted . | . . . Intel | -11 -10 -10 ------- Run | Yrd Mat Min Robot Analysis Total . | . . . Derelict Logs Recovered . | . . . Drone Launches . | . . . Drone Recoveries . | . . . Exploration | -11 -10 -10 ------------- Run | Yrd Mat Min Turns Passed 1355 | 68 1162 125 Spaces Moved 961 | 53 823 85 Core 17 | 15 . 2 Treads 70 | 4 63 3 Legs . | . . . Wheels 874 | 34 760 80 Hover . | . . . Flight . | . . . Fastest Speed 50 | 50 95 110 Average Speed 116 | 87 116 132 Slowest Speed 350 | 160 240 350 Overloaded Moves . | . . . Propulsion Burnouts . | . . . Robots Hopped . | . . . Cave-ins Triggered . | . . . Exploration Rate (%) 37 | 4 85 24 Regions Visited 2 Branch Regions 1 Pre-discovered Areas . | . . . Known Exits Taken 1 | . 1 . Unknown Exits Taken 1 | 1 . . Scrap Searched . | . . . Spaces Dug . | . . . Terrain Destroyed . | . . . Melee . | . . . Projectile . | . . . AOE . | . . . Terrain Rammed . | . . . Walls Destroyed . | . . . Machines Disabled . | . . . Actions | -11 -10 -10 --------- Run | Yrd Mat Min Total 1114 | 71 951 92 Wait 34 | . 32 2 Move 959 | 52 822 85 Hop . | . . . Pick Up 31 | 9 22 . Fast Attach 3 | 1 2 . Attach 6 | 5 1 . Detach . | . . . Swap 15 | 1 12 2 Drop 13 | . 13 . Fire 53 | 3 47 3 Melee . | . . . Ram . | . . . Kick . | . . . Crush . | . . . Escape Stasis . | . . . Rewire . | . . . Trap . | . . . Miscellaneous . | . . . Route ------- -11/Scrapyard -10/Materials (discovered 5 exits: *Mat x3 / *Min x2) -10/Mines (discovered 1 exit: *Mat) History --------- Turn | Location | Event 8 | -11/Scrapyard | Discovered new exit (range 14) 69 | -11/Scrapyard | Entered Materials 299 | -10/Materials | Discovered new exit (range 7) 307 | -10/Materials | Identified exit to Mines 351 | -10/Materials | Build established: Mutant 383 | -10/Materials | Discovered new exit (range 4) 385 | -10/Materials | Identified exit to Materials 566 | -10/Materials | Discovered exit to Materials (range 7) 893 | -10/Materials | Discovered exit to Materials (range 15) 924 | -10/Materials | Discovered exit to Mines (range 14) 1231 | -10/Materials | Entered Mines 1261 | -10/Mines | Discovered exit to Materials (range 7) 1308 | -10/Mines | Assembled infested the area 1352 | -10/Mines | Core integrity fell below 50% 1355 | -10/Mines | Core integrity fell below 20% 1356 | -10/Mines | Destroyed by D-53 Grenadier with Mini Grenade Launcher Last Messages --------------- 01344_ Wheel destroyed. 01344_ System corrupted by crushing effect (+1). 01344_ Knocked back. 01344_ U-05 Engineer lays Concrete. 01345_ Ion Engine destroyed. 01345_ as-68916 destroyed. 01345_ as-70078 destroyed. 01345_ U-05 Engineer builds a Wall. 01347_ The unstable cave ceiling collapses. 01349_ Shotgun destroyed. 01349_ U-05 Engineer builds a Wall. 01350_ Shotgun destroyed. 01351_ The unstable cave ceiling collapses. 01351_ Lgt. Treads destroyed. 01353_ The unstable cave ceiling collapses. 01353_ R-06 Scavenger collects Wheel. 01354_ System corrupted: Matter fused (-6). 01354_ The unstable cave ceiling collapses. 01354_ as-77143 destroyed. 01354_ as-67766 destroyed. Map ----- +----------------------------------------------------+ | ?????????????# #????? #?????????? | | ?????????????##### #???? #?????????? | | ?????????????????# ##?? #??????????? | | ????????????????## ## #??????????? | | ????????????????# #???????????? | | ???????????????## < ##???????????? | | ??????????????## #????????????? | | ?????????????## ##????????????? | | ????????###### ####?????????????? | | ???????## ##????????????????? | | ??????## #?????????????????? | | ?????### ##?????????????????? | | ?????# ##??????????????????? | | ?????## % ##????????????????????? | | ????## ###???????????????????? | | ???## d #???????????????????? | | ???# d ####?????????????????? | | ???# # ##????????????????? | | ???### * % % #????????????????? | | ?????# ## #????????????????? | | ????## # # #????????????????? | | ????# ### #????????????????? | | ????# ## #????????????????? | | ????# %##???????????????? | | ????# * ##??????????????? | | ????# @ #### ??????????? | | ????# #????????? | | ????## =%= #????????? | | ?????#### ## ##%##????????? | | ????????######### #??#?????????? | | ????????????????## ##????????????? | | ??????????????????#####?????????????? | | ????????????????????????????????????? | | ????????????????????????????????????? | | ????????????????????????????????????? | | ????????????????????????????????????? | | ????????????????????????????????????? | | ????????????????????????????????????? | | ????????????????????????????????????? | | | | | | | | | | | | | | | | | | | | | | | +----------------------------------------------------+ Best States ------------- Heat Dissipation 25 Energy Generation 10 Energy Capacity 250 Matter Stores 300 Matter Capacity 300 Sight Range 16 Terrain Scan Density 10 Evasion (%) 41 Recoil Reduction 2 Item Schematics ----------------- None Robot Schematics ------------------ None Fabricated ------------ Nothing Alien Tech Used ----------------- None Achievements -------------- None Challenges ------------ None Game ------ Seed SpikedCoordinationMallet Manual? 0 Play Time 00:15:06 Cumulative 29.3 hours Start 2024.04.10 @ 16:22:36 End 2024.04.10 @ 16:35:54 Sessions 1 Manual Loads 0 Difficulty Rogue Special Mode None Game No. 57 Rogue 57 Adventurer 0 Explorer 0 Win Type - Total 0 Types 0/0/0/0/0/0/0/0/0 Lore% 22 Gallery% 25 Achievement% 22 Wizard Run 0 Options --------- Layout 0 ASCII 0 Keyboard 0 Movement Mouse Keybinds 0 Fullscreen 1 Font 24/Smallcaps Map View 76x50 Zoom Use 0% Tactical HUD 1 Map Filters NONE Filters NONE Steam 1 RUN: 7cd18236-3f91-4353-a849-82fedd627b43